bitfinex-derivatives/quotes_SOLF0:USTF0_20250416
["timestamp","ask_amount","ask_price","bid_price","bid_amount"]
[1744805761671,0.0524694,125.9,125.89,7.944]
[1744805764479,0.0524694,125.9,125.89,14.70539094]
[1744805764668,29.46,125.92,125.91,7.9428]
[1744805765073,37.4006,125.95,125.93,7.9415]
[1744805765378,29.46,125.95,125.93,7.9415]
[1744805765770,29.51229535,125.95,125.93,7.99614417]
[1744805766482,37.45259535,125.95,125.93,7.99614417]
[1744805767184,29.51229535,125.95,125.94,7.9409]
[1744805769176,29.51229535,125.95,125.93,7.99584417]
[1744805769781,29.51229535,125.95,125.94,7.9409]
[1744805770385,29.51229535,125.95,125.93,7.99584417]
[1744805772886,37.45259535,125.95,125.93,7.99584417]
[1744805773086,29.51229535,125.95,125.93,7.99584417]
[1744805775086,37.45269535,125.95,125.93,7.99584417]
[1744805775887,29.51229535,125.95,125.93,7.99584417]
[1744805776188,29.51229535,125.95,125.94,7.9409]
[1744805780190,29.51229535,125.95,125.93,7.99574417]
[1744805781495,29.51229535,125.95,125.94,7.9409]
[1744805783196,29.51229535,125.95,125.93,7.99584417]
[1744805784991,29.51229535,125.95,125.94,7.9409]
[1744805787898,29.51229535,125.95,125.93,7.99594417]
[1744805788996,29.51229535,125.95,125.94,7.9409]
[1744805792300,0.05229535,125.95,125.94,7.9409]
[1744805792505,0.05229535,125.95,125.94,14.70229094]
[1744805795199,0.05229535,125.95,125.94,7.9409]
[1744805801817,29.44,125.97,125.96,7.9396]
[1744805802018,29.44,126.0,125.96,6.76139094]
[1744805802211,29.44,126.0,125.94,6.4777]
[1744805802417,29.44,126.03,125.99,6.76139094]
[1744805802716,29.44,126.03,126.01,6.76139094]
[1744805802913,0.05367708,126.02,126.01,14.69789094]
[1744805803518,0.05367708,126.02,126.0,7.99448475]
[1744805804413,0.05367708,126.02,126.01,7.9365]
[1744805804919,37.3536,126.06,126.01,6.76139094]
[1744805805119,37.3536,126.06,126.02,6.76139094]
[1744805805717,37.3536,126.06,126.03,7.9349]
[1744805806221,37.40456927,126.06,126.03,7.99379543]
[1744805806921,29.47096927,126.06,126.04,7.9342]
[1744805808623,37.40436927,126.06,126.04,7.9342]
[1744805809121,29.47096927,126.06,126.05,7.9339]
[1744805809625,29.47096927,126.06,126.03,6.82028637]
[1744805809828,29.47096927,126.06,126.04,7.9343]
[1744805811825,37.40446927,126.06,126.04,7.9343]
[1744805812019,29.47096927,126.06,126.03,0.05889543]
[1744805812224,6.76139094,126.04,125.98,6.76139094]
[1744805812425,36.18139094,126.03,125.98,6.76139094]
[1744805812626,36.18139094,126.03,126.0,7.9368]
[1744805812825,44.11699094,126.03,126.0,7.9368]
[1744805813329,44.17238156,126.03,126.0,7.98955526]
[1744805814830,7.936,126.02,126.0,0.05275526]
[1744805815026,36.23678156,126.03,126.0,0.05275526]
[1744805815234,6.76139094,126.02,126.0,0.05275526]
[1744805815422,7.9365,126.01,126.0,0.05275526]
[1744805815625,6.76139094,126.02,126.0,0.05275526]
[1744805815828,36.23678156,126.03,126.0,0.05275526]
[1744805816131,29.47539062,126.03,126.0,0.05275526]
[1744805817131,37.41099062,126.03,126.0,7.98955526]
[1744805818732,7.9359,126.02,126.0,0.05275526]
[1744805820232,29.47539062,126.03,126.0,7.98985526]
[1744805820528,29.47539062,126.03,126.0,0.05275526]
[1744805820927,6.76139094,126.02,126.0,0.05275526]
[1744805821431,14.69789094,126.01,126.0,0.05275526]
[1744805821629,6.76139094,126.0,125.95,6.76139094]
[1744805821829,36.16139094,126.0,125.95,6.76139094]
[1744805822034,44.09889094,126.0,125.97,7.9389]
[1744805822332,36.16139094,126.0,125.97,7.9389]
[1744805822533,36.16139094,126.0,125.95,6.76139094]
[1744805822734,6.76139094,125.99,125.97,0.05521116]
[1744805823433,7.9386,125.98,125.97,0.05521116]
[1744805823836,6.76139094,125.99,125.97,7.99421116]
[1744805824135,44.14990181,126.0,125.97,7.99421116]
[1744805825335,7.9379,125.99,125.97,7.99421116]
[1744805825837,44.15010181,126.0,125.97,7.99421116]
[1744805826240,36.21260181,126.0,125.97,7.99421116]
[1744805827133,44.15000181,126.0,125.97,7.99421116]
[1744805827334,29.45121087,126.0,125.98,7.9383]
[1744805828033,29.45121087,126.0,125.97,7.99381116]
[1744805828234,29.45121087,126.0,125.97,0.05521116]
[1744805828434,6.76139094,125.98,125.97,0.05521116]
[1744805828634,6.76139094,125.98,125.9,36.16139094]
[1744805828834,6.76139094,125.95,125.9,36.16139094]
[1744805829044,6.76139094,125.95,125.92,7.9418]
[1744805829338,6.76139094,125.95,125.9,36.16139094]
[1744805829538,6.76139094,125.95,125.91,6.76139094]
[1744805829839,0.05391062,125.94,125.92,7.942]
[1744805830437,0.05391062,125.94,125.91,14.76398482]
[1744805830638,0.05391062,125.94,125.91,6.82158482]
[1744805831140,7.99481062,125.94,125.91,14.76388482]
[1744805832739,0.05391062,125.94,125.92,7.942]
[1744805832936,0.05391062,125.94,125.91,6.82158482]
[1744805833240,7.99481062,125.94,125.91,14.76388482]
[1744805833441,6.76139094,125.92,125.91,0.06019388]
[1744805833841,36.16139094,125.93,125.91,0.06019388]
[1744805834035,29.4,125.93,125.91,0.06019388]
[1744805834742,37.3418,125.93,125.91,0.06019388]
[1744805835939,29.4,125.93,125.91,8.00289388]
[1744805836243,29.4,125.93,125.91,6.82158482]
[1744805836433,0.05391062,125.94,125.92,6.76139094]
[1744805836638,0.05391062,125.94,125.93,6.76139094]
[1744805837344,0.05391062,125.94,125.93,14.70289094]
[1744805837644,29.4,125.96,125.93,6.76139094]
[1744805837843,29.4,125.99,125.95,6.76139094]
[1744805838243,37.3379,125.99,125.96,7.9393]
[1744805838445,29.4,125.99,125.95,6.76139094]
[1744805838746,0.05856634,125.98,125.96,7.98905807]
[1744805839237,0.05856634,125.98,125.96,0.05005807]
[1744805839942,0.05856634,125.98,125.96,6.81144901]
[1744805840148,29.4,126.02,125.97,6.76139094]
[1744805840347,29.4,126.02,125.99,6.76139094]
[1744805841142,36.16139094,126.02,125.97,8.79289094]
[1744805841350,6.76139094,126.01,125.99,0.05964796]
[1744805841646,6.82235937,126.01,125.99,0.05964796]
[1744805842149,14.75885937,126.01,125.99,0.05964796]
[1744805842351,0.06096843,126.01,125.99,0.05964796]
[1744805843148,0.06096843,126.01,126.0,7.9371]
[1744805843353,6.82235937,126.01,125.99,0.05964796]
[1744805843550,6.76139094,125.98,125.93,8.79289094]
[1744805843851,0.06096843,126.01,125.93,8.79289094]
[1744805843852,6.76139094,125.97,125.93,2.0315]
[1744805844046,6.76139094,125.98,125.93,2.0315]
[1744805844650,0.05929514,125.97,125.94,7.99911749]
[1744805845852,7.99829514,125.97,125.94,7.99911749]
[1744805846251,7.99829514,125.97,125.94,0.05851749]
[1744805846950,29.4,125.96,125.94,0.05851749]
[1744805847149,6.76139094,125.95,125.94,0.05851749]
[1744805847951,14.70159094,125.95,125.94,0.05851749]
[1744805852460,44.10119094,125.96,125.94,0.05851749]
[1744805853459,44.10119094,125.96,125.94,7.99931749]
[1744805853654,0.05929514,125.97,125.95,6.76139094]
[1744805854360,600.96,126.0,125.96,6.76139094]
[1744805854560,607.72139094,126.0,125.95,6.76139094]
[1744805854859,615.65859094,126.0,125.97,7.9386]
[1744805855054,600.96,126.0,125.97,7.9386]
[1744805855256,29.4,126.0,125.98,6.76139094]
[1744805855653,29.45685882,126.0,125.98,6.82140985]
[1744805856558,29.45685882,126.0,125.99,7.9377]
[1744805860365,0.05685882,126.0,125.99,7.9377]
[1744805865263,29.43685882,126.0,125.98,0.06001891]
[1744805865463,37.37405882,126.0,125.98,0.06001891]
[1744805865669,29.43685882,126.0,125.99,7.9377]
[1744805865863,0.05685882,126.0,125.99,7.9377]
[1744805876975,29.43685882,126.0,125.98,0.06001891]
[1744805877179,36.19267801,126.0,125.98,0.06001891]
[1744805877370,29.43685882,126.0,125.98,7.99801891]
[1744805877772,29.43685882,126.0,125.98,0.06001891]
[1744805877977,29.43685882,126.0,125.99,7.9377]
[1744805879075,29.43685882,126.0,125.98,7.99801891]
[1744805879377,29.43685882,126.0,125.98,0.06001891]
[1744805879779,36.19267801,126.0,125.98,0.06001891]
[1744805880676,29.43685882,126.0,125.98,0.06001891]
[1744805881280,29.43685882,126.0,125.98,7.99801891]
[1744805881582,0.05685882,126.0,125.99,6.75581919]
[1744805881881,0.05685882,126.0,125.99,14.69351919]
[1744805882482,0.05685882,126.0,125.99,7.9377]
[1744805882682,0.05685882,126.0,125.98,7.99801891]
[1744805882880,29.41685882,126.0,125.98,0.06001891]
[1744805883080,7.9377,125.99,125.98,0.06001891]
[1744805883384,29.41685882,126.0,125.98,0.06001891]
[1744805884082,37.35445882,126.0,125.98,0.06001891]
[1744805884280,44.11027801,126.0,125.98,0.06001891]
[1744805885284,44.11027801,126.0,125.98,7.99831891]
[1744805885679,29.41685882,126.0,125.98,0.06001891]
[1744805885881,29.41685882,126.0,125.99,14.69351919]
[1744805886078,0.05685882,126.0,125.99,14.69351919]
[1744805892194,0.05685882,126.0,125.99,7.9377]
[1744805896393,0.05685882,126.0,125.99,14.69351919]
[1744805897492,0.05685882,126.0,125.99,7.9377]
[1744805899198,36.17267801,126.0,125.98,0.06001891]
[1744805899396,6.75581919,125.99,125.98,0.06001891]
[1744805899999,14.69351919,125.99,125.98,0.06001891]
[1744805906601,14.69521919,125.97,125.95,7.9399]
[1744805906794,29.36,125.96,125.95,7.9399]
[1744805909201,29.36,125.96,125.94,7.99885914]
[1744805910001,29.36,125.96,125.95,7.9402]
[1744805910399,29.36,125.96,125.94,0.05825914]
[1744805910595,36.11581919,125.96,125.94,0.05825914]
[1744805910799,6.75581919,125.95,125.94,0.05825914]
[1744805911500,36.11581919,125.96,125.94,0.05825914]
[1744805912201,44.05571919,125.96,125.94,0.05825914]
[1744805912501,6.75581919,125.95,125.94,0.05825914]
[1744805913200,14.69601919,125.95,125.94,0.05825914]
[1744805913399,6.75581919,125.95,125.93,5.98715]
[1744805913601,6.75581919,125.94,125.93,5.98715]
[1744805914202,6.75581919,125.91,125.86,13.39621919]
[1744805914399,36.11581919,125.91,125.86,13.39621919]
[1744805914599,6.80855173,125.9,125.89,7.9437]
[1744805919802,0.05273254,125.9,125.89,7.9437]
[1744805920002,0.05273254,125.9,125.89,14.69951919]
[1744805920998,0.05273254,125.9,125.89,7.9437]
[1744805921303,0.05273254,125.9,125.88,7.9443]
[1744805922705,0.05273254,125.9,125.89,7.944]
[1744805925808,0.05273254,125.9,125.89,14.69981919]
[1744805926010,6.75581919,125.96,125.89,6.75581919]
[1744805926215,29.36,125.96,125.92,6.75581919]
[1744805927109,0.05971899,125.95,125.93,0.0538339]
[1744805928212,0.05971899,125.95,125.94,7.9409]
[1744805928609,0.05971899,125.95,125.93,0.0538339]
[1744805928912,6.75581919,125.94,125.93,0.0538339]
[1744805929411,6.81553818,125.95,125.94,7.9409]
[1744805929916,6.81553818,125.95,125.93,0.0538339]
[1744805930215,6.81553818,125.95,125.93,7.9950339]
[1744805931317,6.81553818,125.95,125.93,0.0538339]
[1744805931514,29.36,125.99,125.94,6.75581919]
[1744805931714,29.36,125.99,125.97,6.75581919]
[1744805932115,29.36,125.99,125.98,7.9384]
[1744805932517,29.36,126.02,125.98,6.75581919]
[1744805932714,0.060258,126.0,125.99,6.75581919]
[1744805933114,0.060258,126.0,125.98,10.80541919]
[1744805933315,0.060258,126.0,125.99,7.9377]
[1744805937719,0.060258,126.0,125.99,14.69351919]
[1744805939012,0.060258,126.0,125.99,7.9377]
[1744805940225,0.060258,126.0,125.98,10.80541919]
[1744805940226,0.060258,126.0,125.98,7.938]
[1744805940624,0.060258,126.0,125.99,7.9377]
[1744805941727,0.060258,126.0,125.97,0.06016418]
[1744805942225,0.060258,126.0,125.97,7.99866418]
[1744805942927,0.060258,126.0,125.98,7.9383]
[1744805943227,0.060258,126.0,125.97,0.06016418]
[1744805943726,0.060258,126.0,125.98,7.938]
[1744805944821,0.060258,126.0,125.97,0.06016418]
[1744805945931,0.060258,126.0,125.98,7.938]
[1744805946223,0.060258,126.0,125.98,6.75581919]
[1744805946424,0.060258,126.0,125.99,6.75581919]
[1744805946618,29.36,126.02,126.01,7.9365]
[1744805948029,0.05372956,126.03,126.02,7.9358]
[1744805948231,0.05372956,126.03,126.02,14.69161919]
[1744805949126,29.34,126.05,126.04,7.9346]
[1744805950229,0.05506217,126.06,126.03,6.80706557]
[1744805951025,6.81088136,126.06,126.03,0.05124638]
[1744805951233,6.75581919,126.05,126.03,0.05124638]
[1744805951434,36.07581919,126.05,126.03,0.05124638]
[1744805951734,29.32,126.05,126.03,0.05124638]
[1744805952833,29.32,126.05,126.03,7.98614638]
[1744805953635,37.254,126.05,126.03,0.05124638]
[1744805954436,7.9346,126.04,126.03,0.05124638]
[1744805954635,14.69041919,126.04,126.03,0.05124638]
[1744805956932,7.9366,126.01,125.98,2.1361]
[1744805957138,6.75581919,126.01,125.95,8.87451919]
[1744805957337,6.75581919,125.99,125.95,2.1187]
[1744805957533,6.75581919,125.98,125.97,7.9385]
[1744805957736,6.75581919,125.99,125.95,2.1187]
[1744805958138,6.75581919,125.99,125.98,7.9384]
[1744805958637,6.75581919,125.99,125.96,0.05094452]
[1744805958835,6.75581919,125.99,125.97,7.9387]
[1744805959138,7.99348353,126.0,125.97,7.9387]
[1744805959739,7.9377,125.99,125.96,7.99034452]
[1744805960139,10.55606892,125.98,125.96,0.05094452]
[1744805960838,7.939,125.97,125.96,0.05094452]
[1744805961441,18.49476892,125.98,125.96,0.05094452]
[1744805965138,7.939,125.97,125.96,0.05094452]
[1744805965443,10.55606892,125.98,125.96,0.05094452]
[1744805965742,18.49466892,125.98,125.96,0.05094452]
[1744805966244,10.55606892,125.98,125.96,0.05094452]
[1744805966443,7.939,125.97,125.96,0.05094452]
[1744805970242,29.32,125.99,125.96,0.05094452]
[1744805970644,7.9386,125.98,125.96,0.05094452]
[1744805975151,7.9386,125.98,125.96,7.99034452]
[1744805978249,29.32,125.99,125.96,0.05094452]
[1744805978648,29.32,125.99,125.98,7.9384]
[1744805978948,29.32,125.99,125.96,0.05094452]
[1744805979144,29.32,125.99,125.97,7.9387]
[1744805979851,29.32,125.99,125.96,0.05094452]
[1744805980351,37.2577,125.99,125.96,7.99024452]
[1744805980651,37.2577,125.99,125.96,0.05094452]
[1744805981049,37.2577,125.99,125.96,7.99024452]
[1744805981349,44.01379298,125.99,125.96,7.99024452]
[1744805981547,36.07609298,125.99,125.97,7.939]
[1744805982352,44.01389298,125.99,125.96,7.99014452]
[1744805982851,36.07609298,125.99,125.97,7.939]
[1744805984152,44.01389298,125.99,125.97,7.939]
[1744805984352,29.32,125.99,125.96,6.8070375]
[1744805986858,29.32,125.99,125.97,7.939]
[1744805987157,29.32,125.99,125.96,6.8070375]
[1744805987352,29.32,125.99,125.96,0.05094452]
[1744805987554,6.75609298,125.98,125.96,0.05094452]
[1744805987858,6.75609298,125.98,125.96,7.99014452]
[1744805988356,6.75609298,125.98,125.96,0.05094452]
[1744805989158,6.75609298,125.98,125.97,7.939]
[1744805992964,6.75609298,125.98,125.96,7.99014452]
[1744805993165,6.75609298,125.98,125.96,0.05094452]
[1744805993566,6.75609298,125.98,125.97,7.939]
[1744805994168,6.75609298,125.98,125.96,7.99034452]
[1744805994667,6.75609298,125.98,125.97,7.939]
[1744805995065,6.75609298,125.98,125.96,0.05094452]
[1744805995369,6.75609298,125.98,125.96,7.99024452]
[1744805995869,14.69479298,125.98,125.96,0.05094452]
[1744805996471,7.939,125.97,125.96,0.05094452]
[1744805996772,6.75609298,125.98,125.96,0.05094452]
[1744805997069,14.69479298,125.98,125.96,0.05094452]
[1744805998073,14.69479298,125.98,125.96,7.99054452]
[1744805998373,29.32,125.99,125.96,0.05094452]
[1744805998674,29.32,125.99,125.97,7.939]
[1744806000774,44.01389298,125.99,125.96,7.99014452]
[1744806000973,6.75609298,125.98,125.96,0.05094452]
[1744806001172,7.939,125.97,125.96,0.05094452]
[1744806001772,14.69509298,125.97,125.96,0.05094452]
[1744806003475,6.75609298,125.97,125.96,0.05094452]
[1744806004866,6.75609298,125.98,125.96,0.05094452]
[1744806005273,6.75609298,125.98,125.96,7.99024452]
[1744806006076,14.69459298,125.98,125.96,0.05094452]
[1744806006277,6.75609298,125.97,125.96,0.05094452]
[1744806008276,6.75609298,125.97,125.96,7.99054452]
[1744806008478,36.07609298,125.99,125.96,0.05094452]
[1744806008679,29.32,125.99,125.96,0.05094452]
[1744806009479,29.32,125.99,125.97,7.939]
[1744806009979,36.07609298,125.99,125.97,7.939]
[1744806010480,44.01389298,125.99,125.97,7.939]
[1744806011175,6.75609298,125.98,125.96,0.05094452]
[1744806011378,6.75609298,125.97,125.96,0.05094452]
[1744806011781,14.69509298,125.97,125.96,0.05094452]
[1744806012282,7.9415,125.93,125.91,7.9425]
[1744806012481,44.01759298,125.93,125.91,7.9425]
[1744806012881,44.01759298,125.93,125.9,7.9429]
[1744806013278,44.06840958,125.93,125.9,7.99816022]
[1744806013581,6.75609298,125.92,125.9,0.05526022]
[1744806013782,29.3708166,125.93,125.9,0.05526022]
[1744806013783,6.75609298,125.91,125.9,0.05526022]
[1744806015183,7.9424,125.92,125.9,0.05526022]
[1744806015880,37.3127166,125.93,125.9,7.99866022]
[1744806016283,29.3708166,125.93,125.92,7.9421]
[1744806016583,0.0508166,125.93,125.92,7.9421]
[1744806016783,29.32,125.96,125.92,4.2354]
[1744806016985,29.32,126.01,125.95,10.56924242]
[1744806017178,29.32,126.01,125.97,10.56924242]
[1744806017380,29.32,126.04,126.01,7.9363]
[1744806017985,29.37101941,126.04,126.01,7.99272034]
[1744806018286,37.30581941,126.04,126.01,7.99272034]
[1744806019884,29.37101941,126.04,126.02,7.9358]
[1744806020786,37.30561941,126.04,126.02,7.9358]
[1744806020987,29.37101941,126.04,126.02,7.9358]
[1744806023991,37.30561941,126.04,126.02,7.9358]
[1744806024188,29.37101941,126.04,126.01,0.05642034]
[1744806024392,29.37101941,126.04,126.03,7.9352]
[1744806025190,4.2525,126.11,126.01,39.94566276]
[1744806025493,29.32,126.09,126.03,10.56924242]
[1744806025893,29.32,126.09,126.06,7.933]
[1744806026395,0.05115473,126.09,126.06,7.99029043]
[1744806026589,0.05115473,126.09,126.07,7.9327]
[1744806026795,29.35115473,126.09,126.07,7.9327]
[1744806027395,29.35115473,126.09,126.06,0.05729043]
[1744806027894,29.35115473,126.09,126.06,7.99039043]
[1744806028393,37.28255473,126.09,126.06,7.99039043]
[1744806028594,37.28255473,126.09,126.06,0.05729043]
[1744806029394,29.35115473,126.09,126.06,0.05729043]
[1744806030188,29.35115473,126.09,126.07,7.9325]
[1744806031697,29.35115473,126.09,126.06,0.05729043]
[1744806032599,29.35115473,126.09,126.07,7.9324]
[1744806033296,29.35115473,126.09,126.06,7.99039043]
[1744806033698,29.35115473,126.09,126.06,0.05729043]
[1744806033890,29.35115473,126.09,126.07,7.9326]
[1744806034198,29.35115473,126.09,126.06,0.05729043]
[1744806034593,29.35115473,126.09,126.08,7.9321]
[1744806034899,29.35115473,126.09,126.06,0.05729043]
[1744806035298,10.56924242,126.08,126.06,0.05729043]
[1744806035898,18.50164242,126.08,126.06,0.05729043]
[1744806037195,7.9327,126.07,126.06,0.05729043]
[1744806039001,7.9334,126.06,126.03,7.9351]
[1744806039302,37.2134,126.06,126.03,7.9351]
[1744806040102,37.26706766,126.06,126.03,7.98593586]
[1744806042303,7.934,126.05,126.03,0.05083586]
[1744806043502,29.33366766,126.06,126.03,7.98593586]
[1744806043701,29.33366766,126.06,126.03,0.05083586]
[1744806044101,29.33366766,126.06,126.03,7.98543586]
[1744806044303,29.33366766,126.06,126.03,0.05083586]
[1744806044605,29.33366766,126.06,126.04,7.9344]
[1744806044806,37.26696766,126.06,126.03,0.05083586]
[1744806045407,37.26696766,126.06,126.03,7.98573586]
[1744806045606,29.33366766,126.06,126.03,0.05083586]
[1744806046305,37.26696766,126.06,126.03,7.98573586]
[1744806046713,29.33366766,126.06,126.03,0.05083586]
[1744806046909,29.33366766,126.06,126.04,7.9345]
[1744806047109,29.33366766,126.06,126.03,0.05083586]
[1744806047403,37.26706766,126.06,126.03,0.05083586]
[1744806047607,37.26706766,126.06,126.03,7.98573586]
[1744806048508,29.33366766,126.06,126.04,7.9345]
[1744806049207,37.26696766,126.06,126.03,7.98573586]
[1744806050512,29.33366766,126.06,126.03,0.05083586]
[1744806051108,29.33366766,126.06,126.03,6.79762207]
[1744806051412,29.33366766,126.06,126.05,7.9339]
[1744806053214,29.33366766,126.06,126.04,7.9342]
[1744806054014,0.05366766,126.06,126.05,14.68068621]
[1744806055217,0.05366766,126.06,126.05,7.9339]
[1744806060427,0.05366766,126.06,126.05,14.68068621]
[1744806065726,29.28,126.09,126.08,7.9321]
[1744806067428,29.28,126.09,126.07,7.98700786]
[1744806068122,29.28,126.09,126.07,0.05460786]
[1744806068426,36.02678621,126.09,126.07,0.05460786]
[1744806068724,6.74678621,126.08,126.07,0.05460786]
[1744806071028,36.02678621,126.09,126.07,0.05460786]
[1744806071530,36.02678621,126.09,126.08,7.9321]
[1744806073028,0.05222054,126.1,126.07,6.80139407]
[1744806073234,0.05222054,126.1,126.09,6.74678621]
[1744806074335,0.05222054,126.1,126.09,14.67818621]
[1744806075934,0.05222054,126.1,126.09,7.9314]
[1744806076135,0.05222054,126.1,126.08,7.9317]
[1744806076136,6.79900675,126.1,126.08,7.9317]
[1744806076634,14.73010675,126.1,126.08,7.9317]
[1744806080341,6.74678621,126.09,126.07,0.05460786]
[1744806080741,6.74678621,126.09,126.07,7.98720786]
[1744806080742,14.67868621,126.09,126.07,7.98720786]
[1744806082043,7.9321,126.08,126.07,0.05460786]
[1744806082244,6.74678621,126.09,126.07,0.05460786]
[1744806082747,14.67858621,126.09,126.07,7.98730786]
[1744806083348,6.74678621,126.09,126.08,7.9321]
[1744806083541,0.05222054,126.1,126.08,6.74678621]
[1744806083947,0.05222054,126.1,126.09,6.74678621]
[1744806084746,0.05222054,126.1,126.09,14.67818621]
[1744806085448,0.05222054,126.1,126.09,7.9314]
[1744806085648,0.05222054,126.1,126.08,6.74678621]
[1744806086148,0.05222054,126.1,126.09,7.9314]
[1744806087449,0.05222054,126.1,126.09,14.67818621]
[1744806089247,29.26,126.14,126.13,7.9289]
[1744806089645,36.00678621,126.17,126.12,6.74678621]
[1744806089846,36.00678621,126.17,126.15,7.9274]
[1744806090343,29.26,126.17,126.16,7.927]
[1744806090548,29.31016231,126.17,126.15,0.05409248]
[1744806091048,29.31016231,126.17,126.15,7.98129248]
[1744806091348,29.31016231,126.17,126.15,0.05409248]
[1744806092145,36.05694852,126.17,126.15,0.05409248]
[1744806092439,29.31016231,126.17,126.16,7.927]
[1744806093250,0.05016231,126.17,126.16,7.927]
[1744806094152,31.4558,126.23,126.16,6.74678621]
[1744806094351,38.20258621,126.23,126.18,6.74678621]
[1744806094651,38.20258621,126.23,126.2,7.9242]
[1744806094951,6.74678621,126.22,126.2,7.9242]
[1744806095251,7.9233,126.22,126.15,39.77856974]
[1744806095447,7.97963786,126.22,126.2,0.05168516]
[1744806095655,7.97963786,126.22,126.2,0.05190579]
[1744806095846,0.05633786,126.22,126.2,0.05190579]
[1744806096046,10.5749076,126.22,126.2,0.05190579]
[1744806096342,7.9239,126.21,126.2,0.05190579]
[1744806096649,10.5749076,126.22,126.16,7.9266]
[1744806096851,7.9248,126.2,126.17,7.926]
[1744806097044,37.1648,126.2,126.17,7.926]
[1744806097250,29.24,126.2,126.13,12.70666974]
[1744806097448,7.9256,126.19,126.16,7.9268]
[1744806097646,0.05669472,126.18,126.16,7.9268]
[1744806097950,0.05669472,126.18,126.16,7.9266]
[1744806098151,0.05669472,126.18,126.15,0.05861334]
[1744806098552,0.05669472,126.18,126.16,7.927]
[1744806098751,0.05669472,126.18,126.15,0.05861334]
[1744806099353,0.05669472,126.18,126.16,7.927]
[1744806099753,0.05669472,126.18,126.15,0.05861334]
[1744806100255,0.05669472,126.18,126.16,7.927]
[1744806100850,0.05669472,126.18,126.15,0.05861334]
[1744806101854,0.05669472,126.18,126.15,7.98601334]
[1744806102455,0.05669472,126.18,126.15,0.05861334]
[1744806103056,0.05669472,126.18,126.16,7.9266]
[1744806103255,0.05669472,126.18,126.15,0.05861334]
[1744806103956,0.05669472,126.18,126.15,10.57718308]
[1744806104260,0.05669472,126.18,126.17,7.9264]
[1744806106059,0.05669472,126.18,126.16,7.9267]
[1744806106261,0.05669472,126.18,126.15,0.05861334]
[1744806106655,0.05669472,126.18,126.17,7.9264]
[1744806112362,29.24,126.2,126.19,7.9251]
[1744806116671,29.24,126.2,126.18,7.97741256]
[1744806117170,35.97355799,126.2,126.18,7.97741256]
[1744806118170,29.24,126.2,126.18,7.97741256]
[1744806118369,29.24,126.2,126.19,7.9251]
[1744806118569,29.24,126.2,126.18,0.05191256]
[1744806119172,29.24,126.2,126.18,7.97731256]
[1744806119467,6.73355799,126.19,126.18,0.05191256]
[1744806119671,29.24,126.2,126.18,7.97751256]
[1744806120067,29.24,126.2,126.18,0.05191256]
[1744806120472,37.1646,126.2,126.18,0.05191256]
[1744806120668,29.24,126.2,126.18,7.97761256]
[1744806121478,29.24,126.2,126.19,7.9251]
[1744806122279,0.05495872,126.21,126.19,6.73355799]
[1744806123182,0.05495872,126.21,126.2,7.9245]
[1744806127179,0.05495872,126.21,126.19,7.9248]
[1744806127481,6.73355799,126.2,126.18,0.05191256]
[1744806127881,14.71291671,126.21,126.19,7.9248]
[1744806129081,0.05495872,126.21,126.18,6.78547055]
[1744806129381,0.05495872,126.21,126.19,6.73355799]
[1744806129581,0.05495872,126.21,126.2,7.9245]
[1744806131780,0.05495872,126.21,126.2,14.65805799]
[1744806134290,0.05495872,126.21,126.2,7.9245]
[1744806136089,0.05495872,126.21,126.19,7.9248]
[1744806136292,6.78851671,126.21,126.18,0.05191256]
[1744806136491,14.71261671,126.21,126.18,0.05191256]
[1744806137087,0.05495872,126.21,126.18,6.78547055]
[1744806137390,0.05495872,126.21,126.18,0.05191256]
[1744806137690,7.97915872,126.21,126.18,0.05191256]
[1744806138192,7.97915872,126.21,126.18,7.97731256]
[1744806138788,7.97915872,126.21,126.19,7.9251]
[1744806139091,0.05495872,126.21,126.19,7.9251]
[1744806139595,0.05495872,126.21,126.18,0.05191256]
[1744806140990,0.05495872,126.21,126.19,7.9247]
[1744806141393,0.05495872,126.21,126.19,7.9251]
[1744806141591,0.05495872,126.21,126.18,0.05191256]
[1744806142294,0.05495872,126.21,126.19,7.9248]
[1744806142484,29.22,126.23,126.2,6.73355799]
[1744806142684,29.22,126.23,126.22,6.73355799]
[1744806142884,29.22,126.23,126.22,14.65685799]
[1744806143495,570.84,126.26,126.22,14.65685799]
[1744806143496,600.04,126.26,126.24,7.9215]
[1744806143889,29.26096869,126.26,126.24,7.9215]
[1744806144097,29.26096869,126.26,126.24,7.97800324]
[1744806144293,29.26096869,126.26,126.25,7.9214]
[1744806144787,29.26096869,126.26,126.24,0.05650324]